fUSD/lending_fUSD_20240727
["ID","MTS","AMOUNT","RATE_DAILY","PERIOD"]
[333364744,1722071450708,-500.0,0.00010998,2]
[333364746,1722071450718,-500.0,0.00010998,2]
[333364748,1722071450727,-326.29,0.00010998,2]
[333364750,1722071450736,-500.0,0.00010998,2]
[333364752,1722071450746,-500.0,0.00010998,2]
[333364754,1722071450755,-500.0,0.00010998,2]
[333364756,1722071450765,-500.0,0.00010998,2]
[333364758,1722071450774,-188.13856384,0.00010998,2]
[333364760,1722071450784,-500.0,0.00010998,2]
[333364762,1722071450793,-319.69,0.00010998,2]
[333364764,1722071450802,-500.0,0.00010998,2]
[333364765,1722071450812,-198.72,0.00010998,2]
[333364767,1722071450823,-500.0,0.00010998,2]
[333364769,1722071450832,-197.32,0.00010998,2]
[333364771,1722071450841,-423.86,0.00010998,2]
[333364773,1722071450851,-500.0,0.00010998,2]
[333364775,1722071450860,-500.0,0.00010998,2]
[333364777,1722071450869,-500.0,0.00010998,2]
[333364779,1722071450879,-593.52,0.00010998,2]
[333364781,1722071450888,-337.16,0.00010998,2]
[333364784,1722071450897,-500.0,0.00010998,2]
[333364786,1722071450907,-510.31,0.00010998,2]
[333364787,1722071450916,-500.0,0.00010998,2]
[333364789,1722071450925,-500.0,0.00010998,2]
[333364791,1722071450934,-500.0,0.00010998,2]
[333364793,1722071450943,-500.0,0.00010998,2]
[333364795,1722071450952,-500.0,0.00010998,2]
[333364797,1722071450961,-500.0,0.00010998,2]
[333364799,1722071450971,-211.46,0.00010998,2]
[333364802,1722071450981,-500.0,0.00010998,2]
[333364804,1722071450991,-500.0,0.00010998,2]
[333364806,1722071451001,-500.0,0.00010998,2]
[333364808,1722071451010,-281.10099776,0.00010998,2]
[333364824,1722071451157,-160.0,0.000109,2]
[333364826,1722071451167,-218.89900224,0.00010998,2]
[333364828,1722071451178,-469.33631726,0.00010998,2]
[333364831,1722071451191,-30.66368274,0.00010998,2]
[333364833,1722071451201,-500.0,0.00010998,2]
[333364835,1722071451210,-646.34,0.00010998,2]
[333364837,1722071451219,-582.51191325,0.00010998,2]
[333364839,1722071451231,-63.82808675,0.00010998,2]
[333364841,1722071451241,-368.94307581,0.00010998,2]
[333364843,1722071451254,-277.39692419,0.00010998,2]
[333364845,1722071451263,-500.0,0.00010998,2]
[333364847,1722071451272,-72.60307581,0.00010998,2]
[333365453,1722071840616,158.93,0.0001337,30]
[333365460,1722072310780,158.93,0.0001337,30]
[333365466,1722072341868,500.0,0.00019,120]
[333365468,1722072348171,500.0,0.00019,120]
[333365473,1722072403292,500.0,0.00019,120]
[333365474,1722072410236,500.0,0.00019,120]
[333365475,1722072416405,500.0,0.00019,120]
[333365536,1722072633370,-345.83,8.219e-05,2]
[333365537,1722072633380,-300.0,8.999e-05,2]
[333365538,1722072633390,-2049.21311048,9e-05,2]
[333365539,1722072633400,-617.94087704,9e-05,2]
[333365540,1722072633412,-1094.89027509,9e-05,2]
[333365541,1722072633434,-2281.279,9e-05,2]
[333365542,1722072633457,-446.45853724,9e-05,2]
[333365543,1722072633469,-4010.21820015,9e-05,2]
[333365544,1722072633478,-420.0,9.899e-05,2]
[333365545,1722072633487,-153.68776239,9.921e-05,2]
[333365546,1722072633497,-151.36251226,9.921e-05,2]
[333365547,1722072633507,-2671.53293985,9.921e-05,2]
[333365548,1722072633516,-150.0,9.999e-05,2]
[333365549,1722072633528,-1250.0,0.0001,2]
[333365550,1722072633537,-1999.48446577,0.0001,2]
[333365551,1722072633560,-18273.5538286,0.0001,2]
[333365552,1722072633572,-5616.4461714,0.0001,2]
[333365553,1722072633584,-156714.72969039,0.0001,2]
[333365554,1722072633596,-24175.14347884,0.0001,2]
[333365555,1722072633626,-971.11180087,0.0001,2]
[333365557,1722072633646,-628.42,0.0001,2]
[333365559,1722072633656,-5973.18862995,0.0001,2]
[333365561,1722072633669,-1870.38996154,0.0001,2]
[333365564,1722072633680,-927.83269367,0.0001,2]
[333365566,1722072633691,-909.71714587,0.0001,2]
[333365568,1722072633701,-1361.45276237,0.0001,2]
[333365570,1722072633712,-1198.16775,0.0001,2]
[333365572,1722072633723,-805.36977144,0.0001,2]
[333365574,1722072633734,-1489582.95951893,0.0001,2]
[333365576,1722072633745,-24729.67258183,0.0001,2]
[333365579,1722072633761,-7343.88972904,0.0001,2]
[333365689,1722072638395,-5168.69051766,0.0001,2]
[333365690,1722072638407,-1587.81759761,0.0001,2]
[333365691,1722072638420,-500.0,0.0001,2]
[333365692,1722072638432,-4729.95705,0.0001,2]
[333365693,1722072638455,-612.18240239,0.0001,2]
[333365694,1722072638466,-746.48651101,0.0001,2]
[333365695,1722072638501,-313.27,0.0001,2]
[333365696,1722072638518,-254.99999,0.0001,2]
[333365697,1722072638529,-512.01697496,0.0001,2]
[333365698,1722072638541,-321.22218724,0.0001,2]
[333365699,1722072638647,-2875177.62662831,0.0001,2]
[333365700,1722072638660,-7469.34838507,0.0001,2]
[333365701,1722072638671,-47776.02367296,0.0001,2]
[333365863,1722072640426,-335.73094864,0.0001,2]
[333365873,1722072640510,-46723.70916768,0.0001,2]
[333365940,1722072643422,-1742.84747932,0.0001,2]
[333365941,1722072643433,-1640.64999998,0.0001,2]
[333365942,1722072643445,-403.89473973,0.0001,2]
[333365943,1722072643456,-11548.30513058,0.0001,2]
[333365944,1722072643467,-209009.071599,0.0001,2]
[333365945,1722072643479,-701.68229198,0.0001,2]
[333365946,1722072643533,-194641.81709079,0.0001,2]
[333365947,1722072643616,-3536.06282993,0.0001,2]
[333365948,1722072643627,-15122.18966287,0.0001,2]
[333365949,1722072643641,-553.50881932,0.0001,2]
[333365950,1722072643652,-6496.46948832,0.0001,2]
[333365951,1722072643666,-511.70455756,0.0001,2]
[333365952,1722072643679,-927.22751103,0.0001,2]
[333365953,1722072643692,-500.0,0.0001,2]
[333365954,1722072643704,-681.43362743,0.0001,2]
[333365959,1722072643745,-585.97499997,0.0001,2]
[333365960,1722072643759,-846.52210567,0.0001,2]
[333365962,1722072643791,-435.686948,0.0001,2]
[333366221,1722072646412,-2536.43312509,0.0001,2]
[333366223,1722072646933,-1923.23918246,0.0001,2]
[333366225,1722072646944,-1801.94717962,0.0001,2]
[333366227,1722072646955,-313.95119795,0.0001,2]
[333366229,1722072646967,-457.57599352,0.0001,2]
[333366230,1722072646978,-34305.65299458,0.0001,2]
[333366251,1722072930267,158.93,0.0001337,30]
[333366259,1722073176903,-156.57,7.961e-05,2]
[333366260,1722073176928,-1698.0,9.9e-05,2]
[333366261,1722073176951,-2979.5162,9.9e-05,2]
[333366262,1722073176972,-150.0,9.999e-05,2]
[333366263,1722073176995,-20015.9138,0.0001,2]
[333366269,1722073396891,158.93,0.0001337,30]
[333366326,1722073831900,-156.57,7.89e-05,2]
[333366327,1722073831910,-397.98,8.219e-05,2]
[333366328,1722073831919,-150.0,9e-05,2]
[333366329,1722073831929,-1255.76,9.861e-05,2]
[333366330,1722073831938,-150.0,9.899e-05,2]
[333366331,1722073831947,-98.42187852,9.899e-05,2]
[333366332,1722073831958,-201.57812148,9.899e-05,2]
[333366333,1722073831968,-2429.9035,9.9e-05,2]
[333366334,1722073831981,-2211.82763956,9.9e-05,2]
[333366335,1722073831994,-4646.09288881,9.9e-05,2]
[333366350,1722073837584,-1067.7723143,9.9e-05,2]
[333366353,1722073837621,-264.60625733,9.9e-05,2]
[333366354,1722073837630,-750.01104317,9.9e-05,2]
[333366355,1722073837641,-3125.04163485,9.9e-05,2]
[333366356,1722073837829,-253.70482749,9.9e-05,2]
[333366357,1722073837956,-1544.59791416,9.9e-05,2]
[333366366,1722073839740,-701.66503495,9.9e-05,2]
[333366367,1722073839753,-1209.49724686,9.9e-05,2]
[333366368,1722073839785,-300.0,9.9e-05,2]
[333366369,1722073840013,-1765.19999999,9.9e-05,2]
[333366370,1722073840024,-2015.94855758,9.9e-05,2]
[333366371,1722073840036,-10955.031188,9.9e-05,2]
[333366372,1722073840107,-6349.70000002,9.9e-05,2]
[333366373,1722073840118,-2033.49655017,9.9e-05,2]
[333366374,1722073840130,-492.44000003,9.9e-05,2]
[333366375,1722073840149,-636.52233269,9.9e-05,2]
[333366376,1722073840160,-6507.59157004,9.9e-05,2]
[333366377,1722073840170,-1217.4363,9.9e-05,2]
[333366379,1722073840180,-2647.4202,9.9e-05,2]
[333366381,1722073840189,-1216.1253,9.9e-05,2]
[333366382,1722073840199,-1000.0,9.952e-05,2]
[333366383,1722073840208,-36338.09463211,0.0001,2]
[333366385,1722073840228,-302.0,0.0001,2]
[333366387,1722073840239,-13979.55127848,0.0001,2]
[333366400,1722073842905,-823.52658831,0.0001,2]
[333366401,1722073842917,-895.88804481,0.0001,2]
[333366666,1722073845789,-1193.28658012,0.0001,2]
[333366679,1722073845912,-796213.54147408,0.0001,2]
[333366682,1722073845925,-497.75,0.0001,2]
[333366684,1722073845937,-1216.07779227,0.0001,2]
[333366687,1722073845960,-3870.0,0.0001,2]
[333366689,1722073845971,-6751.79144901,0.0001,2]
[333366870,1722073965191,158.93,0.0001337,30]
[333366897,1722074455305,158.93,0.0001337,30]
[333366898,1722074487459,1000.0,0.00015,30]
[333366958,1722074960871,158.93,0.0001337,30]
[333366967,1722075031888,-428.4,8.219e-05,2]
[333366969,1722075031898,-991.0,8.893e-05,2]
[333366971,1722075031907,-300.0,8.894e-05,2]
[333366973,1722075031918,-181.34243174,8.895e-05,2]
[333366975,1722075031927,-1244.53,8.895e-05,2]
[333366977,1722075031936,-10000.0,8.895e-05,2]
[333366978,1722075031945,-2000.0,8.896e-05,2]
[333366980,1722075031956,-200.0,8.898e-05,2]
[333366982,1722075031965,-1000.0,9.021e-05,2]
[333366984,1722075031975,-420.0,9.783e-05,2]
[333366986,1722075031984,-629.3163,9.8e-05,2]
[333366987,1722075031993,-411.62,9.865e-05,2]
[333366988,1722075032005,-411.62,9.868e-05,2]
[333366989,1722075032014,-411.62,9.87e-05,2]
[333366990,1722075032023,-411.62,9.873e-05,2]
[333366991,1722075032032,-411.62,9.875e-05,2]
[333366992,1722075032041,-411.62,9.878e-05,2]
[333366993,1722075032051,-411.62,9.881e-05,2]
[333366994,1722075032061,-411.62,9.883e-05,2]
[333366995,1722075032070,-179.3871163,9.886e-05,2]
[333366996,1722075032081,-232.2328837,9.886e-05,2]
[333366997,1722075032090,-107.6201063,9.888e-05,2]
[333366998,1722075032307,-42.3798937,9.888e-05,2]
[333366999,1722075032316,-411.62,9.888e-05,2]
[333367000,1722075032325,-411.62,9.891e-05,2]
[333367001,1722075032335,-411.62,9.894e-05,2]
[333367002,1722075032346,-411.62,9.896e-05,2]
[333367003,1722075032356,-13.40829645,9.899e-05,2]
[333367004,1722075032368,-398.21170355,9.899e-05,2]
[333367005,1722075032378,-2508.7196,9.9e-05,2]
[333367006,1722075032387,-235.94961993,9.9e-05,2]
[333367007,1722075032435,-259.37769393,9.9e-05,2]
[333367008,1722075032450,-258.89708614,9.9e-05,2]
[333367009,1722075032459,-150.0,9.901e-05,2]
[333367010,1722075032469,-289.01173503,9.901e-05,2]
[333367011,1722075032482,-122.60826497,9.901e-05,2]
[333367012,1722075032492,-411.62,9.904e-05,2]
[333367013,1722075032504,-382.06358988,9.907e-05,2]
[333367014,1722075032515,-29.55641012,9.907e-05,2]
[333367015,1722075032525,-411.62,9.909e-05,2]
[333367016,1722075032534,-411.62,9.912e-05,2]
[333367017,1722075032543,-411.62,9.914e-05,2]
[333367018,1722075032553,-127982.20728475,0.0001,2]
[333367019,1722075032564,-468.09747962,0.0001,2]
[333367020,1722075032575,-33756.11790004,0.0001,2]
[333367021,1722075032586,-3317.59,0.0001,2]
[333367022,1722075032598,-6990.38974753,0.0001,2]
[333367023,1722075032614,-3603.53690901,0.0001,2]
[333367024,1722075032626,-1699.50796363,0.0001,2]
[333367025,1722075032638,-789.29286824,0.0001,2]
[333367029,1722075037878,-3074.74985537,0.0001,2]
[333367030,1722075037890,-853.08727691,0.0001,2]
[333367031,1722075037901,-880.12,0.0001,2]
[333367032,1722075037930,-3879.31648734,0.0001,2]
[333367033,1722075037941,-4677.82886025,0.0001,2]
[333367034,1722075037970,-13155.43099431,0.0001,2]
[333367035,1722075038010,-527.99648139,0.0001,2]
[333367036,1722075038021,-1900.00081091,0.0001,2]
[333367037,1722075038143,-1765.0,0.0001,2]
[333367038,1722075038154,-32792.77518488,0.0001,2]
[333367039,1722075038167,-955.97027776,0.0001,2]
[333367040,1722075038180,-4936.4916975,0.0001,2]
[333367042,1722075038193,-941.43031319,0.0001,2]
[333367044,1722075038204,-1857.14049247,0.0001,2]
[333367046,1722075038217,-451.57864314,0.0001,2]
[333367049,1722075038237,-4779.57044089,0.0001,2]
[333367557,1722075043661,-663.40789983,0.0001,2]
[333367563,1722075043718,-111166.14800576,0.0001,2]
[333367565,1722075043729,-262.86695008,0.0001,2]
[333367570,1722075043776,-5350.19999999,0.0001,2]
[333367577,1722075043835,-300.0,0.0001,2]
[333367579,1722075043847,-294.38089567,0.0001,2]
[333367581,1722075043861,-1673.025,0.0001,2]
[333367583,1722075043872,-13014.6,0.0001,2]
[333367586,1722075043894,-2005.01996387,0.0001,2]
[333367588,1722075043906,-2831.20316439,0.0001,2]
[333367591,1722075043917,-2225.35700123,0.0001,2]
[333367593,1722075043929,-295.464,0.0001,2]
[333367596,1722075043955,-419.61670059,0.0001,2]
[333367782,1722075045838,-5300.33307366,0.0001,2]
[333367806,1722075045971,-669.58337309,0.0001,2]
[333367812,1722075046013,-116169.08627997,0.0001,2]
[333367819,1722075046069,-269.24,0.0001,2]
[333367834,1722075046206,-3375.74610507,0.0001,2]
[333368090,1722075048889,-140.0,0.000112,14]
[333368092,1722075048929,-152.0,0.0001294,11]
[333368096,1722075048960,-152.0,0.00013067,12]
[333368100,1722075048990,-152.0,0.00013193,13]
[333368104,1722075049018,-152.0,0.0001332,14]
[333368108,1722075049049,-152.0,0.00013447,15]
[333368112,1722075049082,-152.0,0.00013573,16]
[333368118,1722075049128,-152.0,0.000137,17]
[333368122,1722075049160,-152.0,0.00013827,18]
[333368126,1722075049194,-152.0,0.00013953,19]
[333368130,1722075049228,-4262.95279296,0.00014,15]
[333368787,1722075067985,-152.0,0.00012813,10]
[333368788,1722075068013,-6850.0,0.00013,10]
[333368790,1722075075381,-5000.0,0.00012,7]
[333368791,1722075075413,-152.0,0.00012433,7]
[333368792,1722075075445,-5040.0,0.00012463,7]
[333368793,1722075075474,-152.0,0.0001256,8]
[333368794,1722075075501,-152.0,0.00012687,9]
[333368795,1722075075739,-4000.0,0.00013463,7]
[333368796,1722075075768,-1505.45,0.00013698,7]
[333368797,1722075075794,-1505.45,0.00013698,7]
[333368798,1722075075820,-1505.45,0.00013698,7]
[333368799,1722075075865,-1505.45,0.00013698,7]
[333368800,1722075075875,-1505.45,0.00013698,7]
[333368801,1722075075885,-1505.45,0.00013698,7]
[333368802,1722075075894,-483.65,0.00013698,7]
[333368803,1722075075927,-152.0,0.00013698,7]
[333368804,1722075075959,-869.8,0.00013698,7]
[333368805,1722075075969,-1505.45,0.00013698,7]
[333368806,1722075075979,-1505.45,0.00013698,7]
[333368807,1722075075990,-1159.3,0.00013698,7]
[333368808,1722075076021,-152.0,0.00013698,7]
[333368809,1722075076054,-152.0,0.00013698,7]
[333368810,1722075076086,-42.15,0.00013698,7]
[333368811,1722075076096,-1505.45,0.00013698,7]
[333368812,1722075076106,-1505.45,0.00013698,7]
[333368813,1722075076116,-946.95,0.00013698,7]
[333368814,1722075076150,-558.5,0.00013698,7]
[333368815,1722075076160,-946.95,0.00013698,7]
[333368816,1722075076421,-558.5,0.00013698,7]
[333368817,1722075076432,-946.95,0.00013698,7]
[333368818,1722075076462,-558.5,0.00013698,7]
[333368819,1722075076471,-946.95,0.00013698,7]
[333368820,1722075076498,-558.5,0.00013698,7]
[333368821,1722075076508,-770.89441408,0.00013698,7]
[333368851,1722075508342,158.93,0.0001337,30]
[333368861,1722076057896,158.93,0.0001337,30]
[333368900,1722076232154,-464.38,8.219e-05,2]
[333368901,1722076232164,-450.32934891,9.317e-05,2]
[333368902,1722076232177,-409.18770388,9.317e-05,2]
[333368903,1722076232189,-3426.12294721,9.317e-05,2]
[333368904,1722076232198,-277.79,9.329e-05,2]
[333368905,1722076232207,-250.0,9.375e-05,2]
[333368906,1722076232217,-1166.31,9.389e-05,2]
[333368907,1722076232226,-1000.0,9.417e-05,2]
[333368908,1722076232235,-1468.7,9.465e-05,2]
[333368909,1722076232244,-300.0,9.469e-05,2]
[333368910,1722076232254,-300.0,9.469e-05,2]
[333368911,1722076232263,-2309.73,9.47e-05,2]
[333368912,1722076232273,-2706.81,9.5e-05,2]
[333368913,1722076232282,-500.0,9.507e-05,2]
[333368914,1722076232292,-9229.14,9.536e-05,2]
[333368915,1722076232301,-2000.0,9.583e-05,2]
[333368916,1722076232311,-150.66623924,9.888e-05,2]
[333368917,1722076232321,-221.03,9.89e-05,3]
[333368918,1722076232331,-2373.67276606,9.999e-05,2]
[333368919,1722076232340,-785.20134825,9.999e-05,2]
[333368920,1722076232349,-150.0,9.999e-05,2]
[333368921,1722076232358,-299806.58719631,0.0001,2]
[333368922,1722076232378,-787.72537109,0.0001,2]
[333368923,1722076232389,-753.09403611,0.0001,2]
[333368925,1722076238202,-1244.38699109,0.0001,2]
[333368926,1722076238333,-514561.52668311,0.0001,2]
[333368927,1722076238345,-286.3073085,0.0001,2]
[333368928,1722076238357,-777.16020434,0.0001,2]
[333368929,1722076238369,-26988.5,0.0001,2]
[333368930,1722076238380,-1925.36,0.0001,2]
[333368964,1722076240154,-6820.56754828,0.0001,2]
[333368965,1722076240187,-1121.2213578,0.0001,2]
[333368966,1722076240389,-1044.795,0.0001,2]
[333368967,1722076240400,-440.96864,0.0001,2]
[333368968,1722076240415,-389900.99806994,0.0001,2]
[333368969,1722076240425,-300.39366149,0.0001,2]
[333368970,1722076240435,-181.59978703,0.0001,2]
[333368971,1722076240445,-861.81347088,0.0001,2]
[333368972,1722076240455,-1049.39668644,0.0001,2]
[333368973,1722076240464,-155.56074322,0.0001,2]
[333368974,1722076240474,-412.62978189,0.0001,2]
[333368975,1722076240483,-170.42632731,0.0001,2]
[333368976,1722076240492,-208.14041065,0.0001,2]
[333368977,1722076240501,-1250.0,0.0001,2]
[333368978,1722076240511,-2681571.62100815,0.0001,2]
[333368979,1722076240522,-478.75263346,0.0001,2]
[333368980,1722076240536,-1065.24,0.0001,2]
[333368981,1722076240547,-52926.90367071,0.0001,2]
[333369305,1722076243780,-183.67273633,9.999e-05,2]
[333369307,1722076243790,-316.90553992,9.999e-05,2]
[333369309,1722076243801,-4243.80178705,9.999e-05,2]
[333369311,1722076243810,-58304.92768548,0.0001,2]
[333369542,1722076246081,-4666.27831828,0.0001,2]
[333369550,1722076246128,-531.0,0.0001,2]
[333369553,1722076246140,-14566.66330613,0.0001,2]
[333369555,1722076246152,-6649.48547676,0.0001,2]
[333369558,1722076246176,-432.5,0.0001,2]
[333369663,1722076247193,-6324.81784563,0.0001,2]
[333369666,1722076247204,-383.87296915,0.0001,2]
[333369668,1722076247216,-544.68072996,0.0001,2]
[333369670,1722076247227,-295.12565298,0.0001,2]
[333369672,1722076247239,-501.50580398,0.0001,2]
[333369674,1722076247250,-3821.0,0.0001,2]
[333369677,1722076247262,-677.99999947,0.0001,2]
[333369679,1722076247273,-4788.38967729,0.0001,2]
[333369681,1722076247283,-769.05650803,0.0001,2]
[333369683,1722076247295,-625.97799995,0.0001,2]
[333369686,1722076247311,-965.49685388,0.0001,2]
[333369688,1722076247322,-2089.86470127,0.0001,2]
[333369690,1722076247334,-1033.05017563,0.0001,2]
[333369692,1722076247345,-217669.15322066,0.0001,2]
[333369695,1722076247357,-6339.61331955,0.0001,2]
[333369697,1722076247368,-1636.31814337,0.0001,2]
[333369699,1722076247379,-295.25514135,0.0001,2]
[333369701,1722076247391,-544.23808247,0.0001,2]
[333369703,1722076247402,-1293.7277763,0.0001,2]
[333369705,1722076247413,-326.67113341,0.0001,2]
[333369707,1722076247424,-527.03553468,0.0001,2]
[333369709,1722076247435,-379.71008372,0.0001,2]
[333369711,1722076247447,-794.89183922,0.0001,2]
[333369713,1722076247458,-3403.72645417,0.0001,2]
[333369716,1722076247479,-1757.99426359,0.0001,2]
[333369718,1722076247493,-965.48345112,0.0001,2]
[333369720,1722076247504,-2306.87815915,0.0001,2]
[333369723,1722076247515,-1458.83968283,0.0001,2]
[333369725,1722076247527,-409.14193754,0.0001,2]
[333369727,1722076247538,-736.8084,0.0001,2]
[333369729,1722076247550,-791.69949259,0.0001,2]
[333369731,1722076247561,-2479.97084612,0.0001,2]
[333369733,1722076247573,-1591.31150862,0.0001,2]
[333369736,1722076247585,-449479.72041316,0.0001,2]
[333369951,1722076293224,-2424.0,9.9e-05,2]
[333369952,1722076293245,-1176.03875563,9.99e-05,2]
[333369953,1722076293265,-183.67273632,9.999e-05,2]
[333369954,1722076293287,-300.0,9.999e-05,2]
[333369955,1722076293308,-300.0,9.999e-05,2]
[333369956,1722076293329,-3420.53049522,9.999e-05,2]
[333369957,1722076293350,-29195.75801283,0.0001,2]
[333369960,1722076543127,158.93,0.0001337,30]
[333369994,1722077070212,158.93,0.0001337,30]
[333370008,1722077268225,165.85,0.000149,31]
[333370009,1722077268270,165.85,0.000149,31]
[333370010,1722077268320,165.85,0.000149,31]
[333370052,1722077432230,-283.0,8.218e-05,2]
[333370053,1722077432240,-552.76890851,8.219e-05,2]
[333370054,1722077432251,-300.1970201,8.219e-05,2]
[333370055,1722077432275,-469.69545328,8.219e-05,2]
[333370056,1722077432285,-562.95,8.219e-05,2]
[333370057,1722077432294,-1000.0,9.21e-05,2]
[333370058,1722077432303,-2000.0,9.216e-05,2]
[333370059,1722077432313,-250.0,9.216e-05,2]
[333370060,1722077432322,-181.15430097,9.216e-05,2]
[333370061,1722077432332,-68.88710143,9.258e-05,2]
[333370062,1722077432343,-326.10289857,9.258e-05,2]
[333370063,1722077432352,-171.38224143,9.289e-05,2]
[333370064,1722077432364,-128.61775857,9.289e-05,2]
[333370065,1722077432374,-552.77293991,9.29e-05,2]
[333370066,1722077432385,-621.1420077,9.29e-05,2]
[333370067,1722077432517,-732.16651249,9.29e-05,2]
[333370068,1722077432528,-428.45648914,9.29e-05,2]
[333370069,1722077432540,-21565.46205076,9.29e-05,2]
[333370070,1722077432550,-9997.14,9.308e-05,2]
[333370071,1722077432559,-172.47,9.574e-05,2]
[333370088,1722077432784,-150.0,9.669e-05,2]
[333370089,1722077432799,-4993.82,9.67e-05,2]
[333370090,1722077432808,-150.99,9.67e-05,2]
[333370092,1722077432817,-299.99,9.67e-05,2]
[333370093,1722077432826,-150.99,9.692e-05,2]
[333370094,1722077432836,-840.32,9.7e-05,2]
[333370095,1722077432845,-1243.5,9.7e-05,2]
[333370096,1722077432856,-205.39,9.763e-05,2]
[333370097,1722077432865,-254.02,9.808e-05,2]
[333370098,1722077432874,-5081.86192814,9.82e-05,2]
[333370099,1722077432884,-4470.6753,9.9e-05,2]
[333370100,1722077432893,-147229.21523649,0.0001,2]
[333370101,1722077432904,-591.41965906,0.0001,2]
[333370102,1722077432916,-2186.65209013,0.0001,2]
[333370103,1722077432927,-9718.37881063,0.0001,2]
[333370104,1722077432938,-854.16488114,0.0001,2]
[333370105,1722077432949,-464.47486671,0.0001,2]
[333370106,1722077432960,-1132.38722525,0.0001,2]
[333370107,1722077432971,-2613.49172089,0.0001,2]
[333370113,1722077438363,-4107.55418675,0.0001,2]
[333370114,1722077438375,-1925.25072804,0.0001,2]
[333370115,1722077438557,-523550.6046504,0.0001,2]
[333370116,1722077438569,-2190.4841389,0.0001,2]
[333370117,1722077438580,-3395.52348452,0.0001,2]
[333370118,1722077438593,-1802557.86065589,0.0001,2]
[333370119,1722077438603,-174.6373474,0.0001,2]
[333370120,1722077438613,-300.39366149,0.0001,2]
[333370121,1722077438622,-449.00481833,0.0001,2]
[333370122,1722077438633,-181.59978703,0.0001,2]
[333370123,1722077438643,-1049.39668644,0.0001,2]
[333370124,1722077438652,-155.56074322,0.0001,2]
[333370125,1722077438662,-1551.34421628,0.0001,2]
[333370126,1722077438671,-412.62978189,0.0001,2]
[333370127,1722077438682,-170.42632731,0.0001,2]
[333370128,1722077438692,-77900.0,0.0001,2]
[333370129,1722077438701,-3000.0,0.0001,2]
[333370130,1722077438712,-371.04593375,0.0001,2]
[333370131,1722077438722,-922.12657432,0.0001,2]
[333370132,1722077438731,-419.83420768,0.00010193,2]
[333370133,1722077438741,-420.0,0.00010217,2]
[333370134,1722077438750,-387.73968512,0.00010308,2]
[333370135,1722077438760,-1000.0,0.00010361,2]
[333370136,1722077438770,-1001.0,0.000104,2]
[333370137,1722077438779,-387.73968512,0.00010419,2]
[333370138,1722077438789,-419.83420768,0.00010437,2]
[333370139,1722077438799,-562.95,0.00010443,2]
[333370140,1722077438809,-19409.29,0.00010475,2]
[333370141,1722077438818,-1994.18,0.00010475,2]
[333370142,1722077438828,-302.47,0.000105,2]
[333370143,1722077438837,-1007.0,0.000105,2]
[333370144,1722077438847,-255.0,0.00010635,2]
[333370145,1722077438857,-1301.0,0.00010686,2]
[333370146,1722077438867,-457.576,0.00010686,2]
[333370147,1722077438876,-3875.113,0.00010686,2]
[333370148,1722077438887,-182.837,0.00010686,2]
[333370149,1722077438896,-150.0,0.00010686,2]
[333370150,1722077438905,-3871.09,0.000107,2]
[333370151,1722077438915,-387.73968512,0.00010771,2]
[333370152,1722077438924,-500.30275313,0.00010786,2]
[333370153,1722077438934,-500.30275311,0.00010843,2]
[333370154,1722077438944,-408.22199438,0.00010863,2]
[333370155,1722077438953,-408.22199438,0.00010869,2]
[333370156,1722077438963,-408.22199438,0.00010877,2]
[333370157,1722077438972,-150.0,0.00010879,2]
[333370158,1722077438982,-151396.87092536,0.0001088,2]
[333370159,1722077438991,-150.0,0.00010886,2]
[333370160,1722077439001,-150.392,0.00010886,2]
[333370161,1722077439011,-2073.0455082,0.0001089,2]
[333370162,1722077439021,-1002.0,0.000109,4]
[333370163,1722077439031,-5036.0,0.000109,2]
[333370164,1722077439041,-160.0,0.000109,2]